fUST/lending_fUST_20250220
["ID","MTS","AMOUNT","RATE_DAILY","PERIOD"]
[353750268,1740009050663,-988.8394981,0.00014361,2]
[353750269,1740009050672,-557.1188801,0.00014361,2]
[353750270,1740009050682,-557.1188801,0.00014361,2]
[353750271,1740009050691,-557.1188801,0.00014361,2]
[353750272,1740009050701,-557.1188801,0.00014361,2]
[353750273,1740009050710,-557.1188801,0.00014361,2]
[353750274,1740009050720,-557.1188801,0.00014361,2]
[353750275,1740009050730,-557.1188801,0.00014361,2]
[353750276,1740009050739,-557.1188801,0.00014361,2]
[353750277,1740009050749,-557.1188801,0.00014361,2]
[353750278,1740009050760,-557.1188801,0.00014361,2]
[353750279,1740009050770,-179.69451932,0.000144,2]
[353750280,1740009050779,-500.0,0.00014438,2]
[353750281,1740009050789,-500.0,0.00014438,2]
[353750282,1740009050798,-500.0,0.00014438,2]
[353750283,1740009050808,-500.0,0.00014438,2]
[353750284,1740009050817,-417.6237776,0.00014438,2]
[353750285,1740009050827,-500.0,0.00014438,2]
[353750286,1740009050836,-500.0,0.00014438,2]
[353750287,1740009050845,-500.0,0.00014438,2]
[353750288,1740009050854,-500.0,0.00014438,2]
[353750289,1740009050864,-500.0,0.00014438,2]
[353750290,1740009050873,-500.0,0.00014438,2]
[353750291,1740009050882,-580.87,0.00014438,2]
[353750292,1740009050892,-500.0,0.00014438,2]
[353750293,1740009050902,-16515.76,0.00014438,2]
[353750294,1740009050912,-615.53,0.00014438,2]
[353750295,1740009050921,-607.15,0.00014438,2]
[353750296,1740009050931,-500.0,0.00014438,2]
[353750297,1740009050941,-500.0,0.00014438,2]
[353750298,1740009050950,-4607.42,0.00014438,2]
[353750299,1740009050959,-657.55,0.00014438,2]
[353750300,1740009050969,-679.91,0.00014438,2]
[353750301,1740009050980,-500.0,0.00014438,2]
[353750302,1740009050989,-1021.52,0.00014438,2]
[353750303,1740009050999,-1884.79,0.00014438,2]
[353750304,1740009051008,-500.0,0.00014438,2]
[353750305,1740009051017,-1274.52,0.00014438,2]
[353750306,1740009051027,-1158.62,0.00014438,2]
[353750307,1740009051035,-760.75,0.00014438,2]
[353750308,1740009051045,-500.0,0.00014438,2]
[353750309,1740009051055,-606.15,0.00014438,2]
[353750310,1740009051065,-500.0,0.00014438,2]
[353750311,1740009051075,-500.0,0.00014438,2]
[353750312,1740009051086,-500.0,0.00014438,2]
[353750313,1740009051095,-646.82,0.00014438,2]
[353750314,1740009051106,-704.58,0.00014438,2]
[353750315,1740009051116,-500.0,0.00014438,2]
[353750316,1740009051126,-1667.33,0.00014438,2]
[353750317,1740009051136,-504.47,0.00014438,2]
[353750318,1740009051145,-500.0,0.00014438,2]
[353750319,1740009051155,-500.0,0.00014438,2]
[353750320,1740009051164,-6048.84,0.00014438,2]
[353750321,1740009051173,-500.0,0.00014438,2]
[353750322,1740009051182,-500.0,0.00014438,2]
[353750323,1740009051192,-500.0,0.00014438,2]
[353750324,1740009051201,-282.31763371,0.00014438,2]
[353750325,1740009051210,-1287.11,0.00014438,2]
[353750326,1740009051223,-890.41,0.00014438,2]
[353750327,1740009051232,-500.0,0.0001452,2]
[353750328,1740009051242,-500.0,0.0001452,2]
[353750329,1740009051251,-514.57,0.0001452,2]
[353750330,1740009051263,-500.0,0.0001452,2]
[353750331,1740009051273,-500.0,0.0001452,2]
[353750332,1740009051283,-500.0,0.0001452,2]
[353750333,1740009051293,-160.11,0.0001452,2]
[353750334,1740009051303,-272.74,0.0001452,2]
[353750335,1740009051315,-500.0,0.0001452,2]
[353750336,1740009051324,-500.0,0.0001452,2]
[353750337,1740009051334,-580.87,0.0001452,2]
[353750338,1740009051344,-500.0,0.0001452,2]
[353750339,1740009051356,-16515.76,0.0001452,2]
[353750340,1740009051366,-615.53,0.0001452,2]
[353750341,1740009051376,-607.15,0.0001452,2]
[353750342,1740009051387,-500.0,0.0001452,2]
[353750343,1740009051397,-500.0,0.0001452,2]
[353750344,1740009051407,-4607.42,0.0001452,2]
[353750345,1740009051417,-657.55,0.0001452,2]
[353750346,1740009051427,-679.91,0.0001452,2]
[353750347,1740009051437,-500.0,0.0001452,2]
[353750348,1740009051447,-1021.52,0.0001452,2]
[353750349,1740009051457,-1884.79,0.0001452,2]
[353750350,1740009051466,-495.47,0.0001452,2]
[353750351,1740009051476,-1274.52,0.0001452,2]
[353750352,1740009051486,-1158.62,0.0001452,2]
[353750353,1740009051496,-760.75,0.0001452,2]
[353750354,1740009051506,-500.0,0.0001452,2]
[353750355,1740009051516,-606.15,0.0001452,2]
[353750356,1740009051527,-500.0,0.0001452,2]
[353750357,1740009051538,-500.0,0.0001452,2]
[353750358,1740009051548,-500.0,0.0001452,2]
[353750359,1740009051559,-646.82,0.0001452,2]
[353750360,1740009051571,-704.58,0.0001452,2]
[353750361,1740009051581,-500.0,0.0001452,2]
[353750362,1740009051590,-1667.33,0.0001452,2]
[353750363,1740009051600,-504.47,0.0001452,2]
[353750364,1740009051610,-500.0,0.0001452,2]
[353750365,1740009051620,-333.93,0.0001452,2]
[353750366,1740009051630,-6048.84,0.0001452,2]
[353750367,1740009051640,-897.731421,0.0001452,2]
[353750368,1740009051649,-897.731421,0.0001452,2]
[353750369,1740009051659,-500.0,0.0001452,2]
[353750370,1740009051669,-500.0,0.0001452,2]
[353750371,1740009051679,-500.0,0.0001452,2]
[353750372,1740009051689,-1287.11,0.0001452,2]
[353750373,1740009051699,-890.41,0.0001452,2]
[353750374,1740009051709,-1000.0,0.00014521,2]
[353750375,1740009051719,-1000.0,0.00014521,2]
[353750376,1740009051729,-1000.0,0.00014521,2]
[353750377,1740009051738,-284.54556735,0.00014561,2]
[353750378,1740009051748,-1895.4012874,0.00014601,2]
[353750379,1740009051757,-206.3297401,0.00014602,2]
[353750380,1740009051767,-500.0,0.00014602,2]
[353750381,1740009051777,-500.0,0.00014602,2]
[353750382,1740009051787,-500.0,0.00014602,2]
[353750383,1740009051796,-1086.214226,0.00014602,2]
[353750384,1740009051805,-1086.214226,0.00014602,2]
[353750385,1740009051816,-151.0,0.00014602,2]
[353750386,1740009051826,-180.44,0.00014602,2]
[353750387,1740009051835,-500.0,0.00014602,2]
[353750388,1740009051845,-580.87,0.00014602,2]
[353750389,1740009051855,-1503.021722,0.00014602,2]
[353750390,1740009051864,-500.0,0.00014602,2]
[353750391,1740009051874,-1503.021722,0.00014602,2]
[353750392,1740009051883,-16515.76,0.00014602,2]
[353750393,1740009051893,-615.53,0.00014602,2]
[353750394,1740009051903,-607.15,0.00014602,2]
[353750395,1740009051912,-500.0,0.00014602,2]
[353750396,1740009051922,-500.0,0.00014602,2]
[353750397,1740009051932,-4607.42,0.00014602,2]
[353750398,1740009051941,-657.55,0.00014602,2]
[353750399,1740009051952,-679.91,0.00014602,2]
[353750400,1740009051962,-500.0,0.00014602,2]
[353750401,1740009051973,-1021.52,0.00014602,2]
[353750402,1740009051983,-1884.79,0.00014602,2]
[353750403,1740009051993,-218.184773,0.00014602,2]
[353750404,1740009052002,-1274.52,0.00014602,2]
[353750405,1740009052012,-218.184773,0.00014602,2]
[353750406,1740009052022,-1158.62,0.00014602,2]
[353750407,1740009052032,-760.75,0.00014602,2]
[353750408,1740009052041,-500.0,0.00014602,2]
[353750409,1740009052052,-606.15,0.00014602,2]
[353750410,1740009052066,-500.0,0.00014602,2]
[353750411,1740009052077,-500.0,0.00014602,2]
[353750412,1740009052088,-279.485742,0.00014602,2]
[353750413,1740009052099,-279.485742,0.00014602,2]
[353750414,1740009052110,-500.0,0.00014602,2]
[353750415,1740009052120,-646.82,0.00014602,2]
[353750416,1740009052130,-704.58,0.00014602,2]
[353750417,1740009052140,-151.357764,0.00014602,2]
[353750418,1740009052150,-1667.33,0.00014602,2]
[353750419,1740009052161,-151.357764,0.00014602,2]
[353750420,1740009052171,-504.47,0.00014602,2]
[353750421,1740009052181,-6048.84,0.00014602,2]
[353750422,1740009052191,-500.0,0.00014602,2]
[353750423,1740009052201,-500.0,0.00014602,2]
[353750424,1740009052210,-1287.11,0.00014602,2]
[353750425,1740009052222,-890.41,0.00014602,2]
[353750426,1740009052232,-500.0,0.00014684,2]
[353750427,1740009052242,-500.0,0.00014684,2]
[353750428,1740009052252,-500.0,0.00014684,2]
[353750429,1740009052262,-580.87,0.00014684,2]
[353750430,1740009052272,-500.0,0.00014684,2]
[353750431,1740009052281,-16515.76,0.00014684,2]
[353750432,1740009052291,-615.53,0.00014684,2]
[353750433,1740009052303,-607.15,0.00014684,2]
[353750434,1740009052314,-500.0,0.00014684,2]
[353750435,1740009052324,-500.0,0.00014684,2]
[353750436,1740009052334,-4607.42,0.00014684,2]
[353750437,1740009052344,-657.55,0.00014684,2]
[353750438,1740009052354,-679.91,0.00014684,2]
[353750439,1740009052364,-500.0,0.00014684,2]
[353750440,1740009052374,-1021.52,0.00014684,2]
[353750441,1740009052384,-1884.79,0.00014684,2]
[353750442,1740009052394,-1274.52,0.00014684,2]
[353750443,1740009052404,-1158.62,0.00014684,2]
[353750444,1740009052414,-760.75,0.00014684,2]
[353750445,1740009052423,-500.0,0.00014684,2]
[353750446,1740009052433,-606.15,0.00014684,2]
[353750447,1740009052443,-500.0,0.00014684,2]
[353750448,1740009052453,-500.0,0.00014684,2]
[353750449,1740009052463,-328.06384719,0.00014684,2]
[353750450,1740009052472,-646.82,0.00014684,2]
[353750451,1740009052482,-704.58,0.00014684,2]
[353750452,1740009052492,-1667.33,0.00014684,2]
[353750453,1740009052502,-504.47,0.00014684,2]
[353750454,1740009052511,-6048.84,0.00014684,2]
[353750455,1740009052521,-500.0,0.00014684,2]
[353750456,1740009052531,-500.0,0.00014684,2]
[353750457,1740009052540,-1287.11,0.00014684,2]
[353750458,1740009052550,-890.41,0.00014684,2]
[353750459,1740009052559,-13275.53870192,0.00014694,2]
[353750460,1740009052569,-151.0,0.000147,2]
[353750461,1740009052579,-151.0,0.000147,2]
[353750462,1740009052588,-1044.969,0.0001475,2]
[353750463,1740009052597,-168.169,0.0001475,2]
[353750464,1740009052606,-500.0,0.00014767,2]
[353750465,1740009052615,-500.0,0.00014767,2]
[353750466,1740009052624,-500.0,0.00014767,2]
[353750467,1740009052634,-580.87,0.00014767,2]
[353750468,1740009052644,-500.0,0.00014767,2]
[353750469,1740009052653,-16515.76,0.00014767,2]
[353750470,1740009052662,-615.53,0.00014767,2]
[353750471,1740009052671,-607.15,0.00014767,2]
[353750472,1740009052681,-500.0,0.00014767,2]
[353750473,1740009052689,-500.0,0.00014767,2]
[353750474,1740009052697,-4607.42,0.00014767,2]
[353750475,1740009052707,-657.55,0.00014767,2]
[353750476,1740009052716,-679.91,0.00014767,2]
[353750477,1740009052725,-500.0,0.00014767,2]
[353750478,1740009052734,-1021.52,0.00014767,2]
[353750479,1740009052744,-1884.79,0.00014767,2]
[353750480,1740009052754,-1274.52,0.00014767,2]
[353750481,1740009052763,-1158.62,0.00014767,2]
[353750482,1740009052772,-760.75,0.00014767,2]
[353750483,1740009052781,-500.0,0.00014767,2]
[353750484,1740009052791,-606.15,0.00014767,2]
[353750485,1740009052800,-500.0,0.00014767,2]
[353750486,1740009052810,-500.0,0.00014767,2]
[353750487,1740009052819,-646.82,0.00014767,2]
[353750488,1740009052828,-704.58,0.00014767,2]
[353750489,1740009052837,-1667.33,0.00014767,2]
[353750490,1740009052846,-504.47,0.00014767,2]
[353750491,1740009052855,-6048.84,0.00014767,2]
[353750492,1740009052864,-500.0,0.00014767,2]
[353750493,1740009052873,-500.0,0.00014767,2]
[353750494,1740009052882,-1287.11,0.00014767,2]
[353750495,1740009052891,-890.41,0.00014767,2]
[353750496,1740009052900,-1000.0,0.00014795,2]
[353750497,1740009052909,-1167.085957,0.000148,2]
[353750498,1740009052918,-151.0,0.000148,2]
[353750499,1740009052927,-627.264385,0.000148,2]
[353750500,1740009052937,-627.264385,0.000148,2]
[353750501,1740009052946,-43662.9841662,0.000148,2]
[353750502,1740009052955,-284.54556735,0.000148,2]
[353750503,1740009052964,-897.731421,0.000148,2]
[353750504,1740009052975,-897.731421,0.000148,2]
[353750505,1740009052986,-151.0,0.00014849,2]
[353750506,1740009052995,-151.0,0.00014849,2]
[353750507,1740009053004,-1546.624899,0.00014849,2]
[353750508,1740009053013,-1546.624899,0.00014849,2]
[353750509,1740009053022,-1155.303409,0.00014849,2]
[353750510,1740009053031,-1155.303409,0.00014849,2]
[353750511,1740009053041,-1049.066856,0.00014849,2]
[353750512,1740009053050,-2823.425337,0.00014849,2]
[353750513,1740009053060,-2823.425337,0.00014849,2]
[353750514,1740009053069,-500.0,0.00014849,2]
[353750515,1740009053079,-500.0,0.00014849,2]
[353750516,1740009053088,-1086.214226,0.00014849,2]
[353750517,1740009053097,-1086.214226,0.00014849,2]
[353750518,1740009053107,-156.314289,0.00014849,2]
[353750519,1740009053116,-500.0,0.00014849,2]
[353750520,1740009053125,-580.87,0.00014849,2]
[353750521,1740009053135,-1503.021722,0.00014849,2]
[353750522,1740009053144,-500.0,0.00014849,2]
[353750523,1740009053153,-1503.021722,0.00014849,2]
[353750524,1740009053162,-16515.76,0.00014849,2]
[353750525,1740009053171,-615.53,0.00014849,2]
[353750526,1740009053181,-607.15,0.00014849,2]
[353750527,1740009053190,-500.0,0.00014849,2]
[353750528,1740009053199,-500.0,0.00014849,2]
[353750529,1740009053208,-4607.42,0.00014849,2]
[353750530,1740009053218,-657.55,0.00014849,2]
[353750531,1740009053230,-679.91,0.00014849,2]
[353750532,1740009053240,-500.0,0.00014849,2]
[353750533,1740009053249,-1021.52,0.00014849,2]
[353750534,1740009053258,-1884.79,0.00014849,2]
[353750535,1740009053268,-218.184773,0.00014849,2]
[353750536,1740009053278,-1274.52,0.00014849,2]
[353750537,1740009053287,-218.184773,0.00014849,2]
[353750538,1740009053296,-1158.62,0.00014849,2]
[353750539,1740009053306,-760.75,0.00014849,2]
[353750540,1740009053315,-379.67999994,0.00014849,2]
[353750541,1740009053324,-606.15,0.00014849,2]
[353750542,1740009053333,-500.0,0.00014849,2]
[353750543,1740009053342,-500.0,0.00014849,2]
[353750544,1740009053459,-279.485742,0.00014849,2]
[353750545,1740009053468,-279.485742,0.00014849,2]
[353750546,1740009053478,-646.82,0.00014849,2]
[353750547,1740009053487,-704.58,0.00014849,2]
[353750548,1740009053497,-151.357764,0.00014849,2]
[353750549,1740009053507,-1667.33,0.00014849,2]
[353750550,1740009053516,-151.357764,0.00014849,2]
[353750551,1740009053525,-504.47,0.00014849,2]
[353750552,1740009053535,-6048.84,0.00014849,2]
[353750553,1740009053545,-500.0,0.00014849,2]
[353750554,1740009053555,-500.0,0.00014849,2]
[353750555,1740009053566,-1287.11,0.00014849,2]
[353750556,1740009053575,-890.41,0.00014849,2]
[353750557,1740009053584,-500.0,0.00014873,2]
[353750558,1740009053593,-345.42438499,0.00014873,2]
[353750559,1740009053603,-274.89863459,0.00014873,2]
[353750560,1740009053612,-500.0,0.00014873,2]
[353750561,1740009053621,-500.0,0.00014873,2]
[353750562,1740009053631,-500.0,0.00014873,2]
[353750563,1740009053640,-500.0,0.00014873,2]
[353750564,1740009053649,-151.0,0.00014898,2]
[353750565,1740009053659,-412.33615872,0.00014898,2]
[353750566,1740009053668,-3000.0,0.00014898,2]
[353750567,1740009053677,-3426.945,0.00014898,2]
[353750568,1740009053686,-897.731421,0.00014898,2]
[353750569,1740009053696,-897.731421,0.00014898,2]
[353750570,1740009053705,-1086.214226,0.00014899,2]
[353750571,1740009053714,-1086.214226,0.00014899,2]
[353750572,1740009053724,-1503.021722,0.00014899,2]
[353750573,1740009053733,-1503.021722,0.00014899,2]
[353750574,1740009053742,-218.184773,0.00014899,2]
[353750575,1740009053751,-218.184773,0.00014899,2]
[353750576,1740009053760,-279.485742,0.00014899,2]
[353750577,1740009053770,-279.485742,0.00014899,2]
[353750578,1740009053780,-151.357764,0.00014899,2]
[353750579,1740009053789,-151.357764,0.00014899,2]
[353750580,1740009053798,-166.0,0.00014899,2]
[353750581,1740009053806,-166.0,0.00014899,2]
[353750582,1740009053815,-204.66108231,0.00014899,2]
[353750583,1740009053824,-259.39,0.00014899,2]
[353750584,1740009053834,-349.0,0.00014899,2]
[353750585,1740009053842,-349.0,0.00014899,2]
[353750586,1740009053851,-314.0,0.00014899,2]
[353750587,1740009053861,-349.0,0.00014899,2]
[353750588,1740009053869,-314.0,0.00014899,2]
[353750589,1740009053878,-217.11643488,0.00014899,2]
[353750590,1740009053888,-314.0,0.00014899,2]
[353750591,1740009053897,-314.0,0.00014899,2]
[353750592,1740009053906,-314.0,0.00014899,2]
[353750593,1740009053915,-314.0,0.00014899,2]
[353750594,1740009053924,-314.0,0.00014899,2]
[353750595,1740009053934,-314.0,0.00014899,2]
[353750596,1740009053944,-314.0,0.00014899,2]
[353750597,1740009053954,-314.0,0.00014899,2]
[353750598,1740009053963,-314.0,0.00014899,2]
[353750599,1740009053973,-314.0,0.00014899,2]
[353750600,1740009053983,-314.0,0.00014899,2]
[353750601,1740009053993,-359.25223506,0.00014899,2]
[353750602,1740009054002,-314.0,0.00014899,2]
[353750603,1740009054011,-314.0,0.00014899,2]
[353750604,1740009054021,-1006.50607972,0.000149,2]
[353750605,1740009054030,-11673.75561442,0.000149,2]
[353750606,1740009054040,-857.48366,0.000149,2]
[353750607,1740009054049,-857.48366,0.000149,2]
[353750608,1740009054059,-857.48366,0.000149,2]
[353750609,1740009054068,-857.48366,0.000149,2]
[353750610,1740009054078,-151.0,0.000149,2]
[353750611,1740009054088,-151.0,0.000149,2]
[353750612,1740009054098,-151.0,0.000149,2]
[353750613,1740009054109,-153.977227,0.000149,2]
[353750614,1740009054119,-500.0,0.000149,2]
[353750615,1740009054128,-151.0,0.000149,2]
[353750616,1740009054138,-500.0,0.000149,2]
[353750617,1740009054147,-151.0,0.000149,2]
[353750618,1740009054156,-500.0,0.000149,2]
[353750619,1740009054165,-500.0,0.000149,2]
[353750620,1740009054174,-500.0,0.000149,2]
[353750621,1740009054183,-500.0,0.000149,2]
[353750622,1740009054192,-500.0,0.000149,2]
[353750623,1740009054201,-500.0,0.000149,2]
[353750624,1740009054210,-500.0,0.000149,2]
[353750625,1740009054222,-500.0,0.000149,2]
[353750626,1740009054232,-500.0,0.000149,2]
[353750627,1740009054242,-500.0,0.000149,2]
[353750628,1740009054252,-500.0,0.000149,2]
[353750629,1740009054262,-500.0,0.000149,2]
[353750630,1740009054272,-500.0,0.000149,2]
[353750631,1740009054282,-500.0,0.000149,2]
[353750632,1740009054292,-500.0,0.000149,2]
[353750633,1740009054302,-500.0,0.000149,2]
[353750634,1740009054313,-500.0,0.000149,2]
[353750635,1740009054322,-500.0,0.000149,2]
[353750636,1740009054332,-500.0,0.000149,2]
[353750637,1740009054342,-500.0,0.000149,2]
[353750638,1740009054352,-500.0,0.000149,2]
[353750639,1740009054361,-500.0,0.000149,2]
[353750640,1740009054371,-500.0,0.000149,2]
[353750641,1740009054381,-603.554545,0.000149,2]
[353750642,1740009054391,-364.184848,0.000149,2]
[353750643,1740009054400,-364.184848,0.000149,2]
[353750644,1740009054410,-364.184848,0.000149,2]
[353750645,1740009054419,-364.184848,0.000149,2]
[353750646,1740009054429,-2365.398833,0.000149,2]
[353750647,1740009054439,-2365.398833,0.000149,2]
[353750648,1740009054449,-2365.398833,0.000149,2]
[353750649,1740009054458,-2365.398833,0.000149,2]
[353750650,1740009054468,-151.0,0.000149,2]
[353750651,1740009054477,-151.0,0.000149,2]
[353750652,1740009054486,-151.0,0.000149,2]
[353750653,1740009054495,-151.0,0.000149,2]
[353750654,1740009054503,-151.0,0.000149,2]
[353750655,1740009054512,-151.0,0.000149,2]
[353750656,1740009054522,-151.0,0.000149,2]
[353750657,1740009054531,-151.0,0.000149,2]
[353750658,1740009054541,-151.0,0.000149,2]
[353750659,1740009054550,-151.0,0.000149,2]
[353750660,1740009054560,-151.0,0.000149,2]
[353750661,1740009054569,-151.0,0.000149,2]
[353750662,1740009054579,-183.232478,0.000149,2]
[353750663,1740009054589,-151.0,0.000149,2]
[353750664,1740009054599,-526.670625,0.000149,2]
[353750665,1740009054609,-526.670625,0.000149,2]
[353750666,1740009054620,-526.670625,0.000149,2]
[353750667,1740009054631,-526.670625,0.000149,2]
[353750668,1740009054640,-151.0,0.000149,2]
[353750669,1740009054650,-1253.040712,0.000149,2]
[353750670,1740009054659,-151.0,0.000149,2]
[353750671,1740009054668,-1253.040712,0.000149,2]
[353750672,1740009054678,-1253.040712,0.000149,2]
[353750673,1740009054687,-151.0,0.000149,2]
[353750674,1740009054696,-1253.040712,0.000149,2]
[353750675,1740009054705,-151.0,0.000149,2]
[353750676,1740009054715,-1167.085957,0.000149,2]
[353750677,1740009054723,-1167.085957,0.000149,2]
[353750678,1740009054733,-1167.085957,0.000149,2]
[353750679,1740009054743,-1167.085957,0.000149,2]
[353750680,1740009054752,-749.756382,0.000149,2]
[353750681,1740009054761,-749.756382,0.000149,2]
[353750682,1740009054770,-151.0,0.000149,2]
[353750683,1740009054780,-749.756382,0.000149,2]
[353750684,1740009054789,-749.756382,0.000149,2]
[353750685,1740009054798,-151.0,0.000149,2]
[353750686,1740009054807,-1546.624899,0.000149,2]
[353750687,1740009054816,-1546.624899,0.000149,2]
[353750688,1740009054826,-1546.624899,0.000149,2]
[353750689,1740009054835,-1546.624899,0.000149,2]
[353750690,1740009054843,-1155.303409,0.000149,2]
[353750691,1740009054854,-1155.303409,0.000149,2]
[353750692,1740009054868,-1049.066856,0.000149,2]
[353750693,1740009054877,-367.515261,0.000149,2]
[353750694,1740009054887,-367.515261,0.000149,2]
[353750695,1740009054897,-367.515261,0.000149,2]
[353750696,1740009054906,-367.515261,0.000149,2]
[353750697,1740009054915,-627.264385,0.000149,2]
[353750698,1740009054925,-627.264385,0.000149,2]
[353750699,1740009054935,-627.264385,0.000149,2]
[353750700,1740009054944,-627.264385,0.000149,2]
[353750701,1740009054953,-2823.425337,0.000149,2]
[353750702,1740009054962,-2823.425337,0.000149,2]
[353750703,1740009054971,-2823.425337,0.000149,2]
[353750704,1740009054980,-2823.425337,0.000149,2]
[353750705,1740009054989,-179.304951,0.000149,2]
[353750706,1740009054997,-179.304951,0.000149,2]
[353750707,1740009055007,-151.0,0.000149,2]
[353750708,1740009055016,-789.616638,0.000149,2]
[353750709,1740009055025,-789.616638,0.000149,2]
[353750710,1740009055034,-236.102534,0.000149,2]
[353750711,1740009055043,-236.102534,0.000149,2]
[353750712,1740009055051,-434.74597,0.000149,2]
[353750713,1740009055060,-434.74597,0.000149,2]
[353750714,1740009055070,-434.74597,0.000149,2]
[353750715,1740009055080,-434.74597,0.000149,2]
[353750716,1740009055088,-4040.729746,0.000149,2]
[353750717,1740009055097,-4040.729746,0.000149,2]
[353750718,1740009055108,-4040.729746,0.000149,2]
[353750719,1740009055116,-4040.729746,0.000149,2]
[353750720,1740009055125,-151.0,0.000149,2]
[353750721,1740009055135,-151.0,0.000149,2]
[353750722,1740009055144,-576.863411,0.000149,2]
[353750723,1740009055153,-576.863411,0.000149,2]
[353750724,1740009055162,-576.863411,0.000149,2]
[353750725,1740009055171,-576.863411,0.000149,2]
[353750726,1740009055180,-151.0,0.000149,2]
[353750727,1740009055189,-151.0,0.000149,2]
[353750728,1740009055199,-1086.214226,0.000149,2]
[353750729,1740009055208,-1086.214226,0.000149,2]
[353750730,1740009055218,-170.715689,0.000149,2]
[353750731,1740009055229,-170.715689,0.000149,2]
[353750732,1740009055238,-170.715689,0.000149,2]
[353750733,1740009055247,-170.715689,0.000149,2]
[353750734,1740009055256,-1339.774645,0.000149,2]
[353750735,1740009055266,-1339.774645,0.000149,2]
[353750736,1740009055276,-1339.774645,0.000149,2]
[353750737,1740009055286,-1339.774645,0.000149,2]
[353750738,1740009055295,-612.608067,0.000149,2]
[353750739,1740009055305,-612.608067,0.000149,2]
[353750740,1740009055315,-2767.604521,0.000149,2]
[353750741,1740009055324,-2767.604521,0.000149,2]
[353750742,1740009055333,-2767.604521,0.000149,2]
[353750743,1740009055343,-2767.604521,0.000149,2]
[353750744,1740009055352,-612.608067,0.000149,2]
[353750745,1740009055362,-612.608067,0.000149,2]
[353750746,1740009055372,-432.45843681,0.000149,2]
[353750747,1740009055382,-1503.021722,0.000149,2]
[353750748,1740009055392,-1503.021722,0.000149,2]
[353750749,1740009055402,-432.45843679,0.000149,2]
[353750750,1740009055411,-691.309199,0.000149,2]
[353750751,1740009055421,-691.309199,0.000149,2]
[353750752,1740009055430,-691.309199,0.000149,2]
[353750753,1740009055439,-691.309199,0.000149,2]
[353750754,1740009055448,-5488.04831471,0.000149,2]
[353750755,1740009055607,-757.23,0.00013698,2]
[353750756,1740009055617,-757.23,0.0001378,2]
[353750757,1740009055627,-2984.03764565,0.00013863,2]
[353750758,1740009055639,-174.89235435,0.00013863,2]
[353750759,1740009055648,-757.23,0.00013863,2]
[353750760,1740009055658,-1933.87764565,0.00013945,2]
[353750761,1740009055671,-321.66502649,0.00013945,2]
[353750762,1740009055682,-903.38732786,0.00013945,2]
[353750763,1740009055691,-668.16880887,0.00014027,2]
[353750764,1740009055702,-840.21759612,0.00014027,2]
[353750765,1740009055822,-500.0,0.00013698,2]
[353750766,1740009055830,-191.0986394,0.0001378,2]
[353750767,1740009055842,-308.9013606,0.0001378,2]